bitfinex-derivatives/quotes_BTCF0:USTF0_20250822
["timestamp","ask_amount","ask_price","bid_price","bid_amount"]
[1755872509509,0.22936,115090.0,115060.0,0.14128]
[1755872509819,0.20679,115080.0,115060.0,1.88161]
[1755872510022,0.34749,115080.0,115060.0,1.88161]
[1755872510317,0.001,115080.0,115070.0,0.31673]
[1755872510515,0.001,115080.0,115070.0,0.33875]
[1755872510818,0.45779,115080.0,115070.0,0.14128]
[1755872511116,0.45779,115080.0,115050.0,0.19747]
[1755872511117,0.22736,115070.0,115050.0,0.1633]
[1755872511317,0.43415,115050.0,115040.0,0.06841445]
[1755872511617,0.20679,115060.0,115050.0,0.14128]
[1755872511820,0.20679,115050.0,115040.0,0.06930551]
[1755872512115,0.73853451,115060.0,115030.0,1.90355]
[1755872512116,0.22736,115060.0,115030.0,1.90355]
[1755872512320,0.08766,115080.0,115050.0,0.31673]
[1755872512523,0.43415,115080.0,115050.0,0.31673]
[1755872512715,0.34649,115070.0,115050.0,0.31673]
[1755872512916,0.43415,115070.0,115050.0,0.31673]
[1755872513220,0.68415,115070.0,115050.0,0.31673]
[1755872513518,0.003,115080.0,115060.0,0.33875]
[1755872513718,0.003,115080.0,115070.0,0.42646]
[1755872514017,0.003,115080.0,115070.0,2.24134]
[1755872514321,0.003,115080.0,115070.0,2.15363]
[1755872514716,0.08766,115120.0,115080.0,0.33955]
[1755872514922,0.29445,115120.0,115100.0,0.14128]
[1755872515117,0.20679,115110.0,115100.0,0.14128]
[1755872515319,0.08766,115110.0,115080.0,0.17545]
[1755872515620,0.34649,115090.0,115070.0,1.70616]
[1755872515825,0.20679,115080.0,115070.0,1.70616]
[1755872516119,0.47736,115090.0,115070.0,1.88312]
[1755872516323,0.68415,115090.0,115070.0,1.88312]
[1755872516521,0.004,115080.0,115070.0,1.88312]
[1755872516827,0.004,115080.0,115070.0,1.90514]
[1755872517422,0.45679,115080.0,115070.0,1.56488]
[1755872517723,0.68415,115080.0,115070.0,1.56488]
[1755872518026,1.19532451,115080.0,115070.0,1.56488]
[1755872518525,0.20679,115060.0,115050.0,1.70592]
[1755872518725,0.20679,115060.0,115050.0,0.14128]
[1755872518916,0.25,115060.0,115050.0,0.31824]
[1755872519121,0.25,115060.0,115050.0,0.14128]
[1755872519422,0.68415,115060.0,115040.0,0.14128]
[1755872519623,0.43415,115060.0,115040.0,0.14128]
[1755872519825,0.29445,115070.0,115050.0,0.17696]
[1755872520126,0.43415,115040.0,115020.0,0.14128]
[1755872520423,0.43415,115050.0,115020.0,0.1633]
[1755872520617,0.43415,115050.0,115030.0,0.34026]
[1755872520815,0.34649,115050.0,115030.0,0.19898]
[1755872521120,0.34649,115050.0,115010.0,0.02167464]
[1755872521121,0.22736,115030.0,115010.0,0.02167464]
[1755872521322,0.34649,115010.0,114980.0,0.14128]
[1755872521522,0.51117451,115020.0,114980.0,0.22133239]
[1755872521523,0.59892391,115020.0,114980.0,0.22133239]
[1755872521727,0.20679,114990.0,114980.0,0.16363239]
[1755872521923,0.43415,114990.0,114970.0,1.56468]
[1755872522127,0.20679,114970.0,114950.0,9.193e-05]
[1755872522330,0.43415,114970.0,114950.0,0.31824]
[1755872522519,0.20679,114950.0,114930.0,3.5573]
[1755872523022,0.20679,114950.0,114930.0,1.90502]
[1755872523222,0.43415,114950.0,114930.0,1.90504474]
[1755872523426,0.43415,114950.0,114930.0,1.72808474]
[1755872523822,0.22736,114950.0,114930.0,1.72808474]
[1755872524130,0.43415,114950.0,114930.0,1.72808474]
[1755872524328,0.20679,114940.0,114930.0,1.72808474]
[1755872524531,0.20679,114940.0,114930.0,1.58680474]
[1755872524729,0.43415,114930.0,114910.0,0.1633]
[1755872524923,0.43415,114930.0,114910.0,0.14128]
[1755872525228,0.22736,115020.0,114970.0,0.19898]
[1755872525428,0.43415,115020.0,115000.0,0.14128]
[1755872525628,0.20679,115010.0,115000.0,0.14128]
[1755872525830,0.20679,115000.0,114990.0,0.14128]
[1755872526027,0.73853451,115010.0,114990.0,0.14128]
[1755872526225,0.25,115000.0,114990.0,0.14128]
[1755872526426,0.96796451,115000.0,114990.0,0.14128]
[1755872526620,1.19532451,115000.0,114980.0,0.31824]
[1755872526828,0.94532451,115000.0,114980.0,0.31824]
[1755872527019,0.68415,115000.0,114980.0,0.31824]
[1755872527219,0.20679,114990.0,114970.0,0.02202]
[1755872527531,0.43415,114980.0,114960.0,0.4272527]
[1755872527727,0.43415,115000.0,114970.0,0.2282651]
[1755872527931,0.20679,114990.0,114970.0,0.02202]
[1755872528130,0.20679,114980.0,114960.0,0.17696]
[1755872528335,0.43415,114980.0,114960.0,0.31824]
[1755872528630,0.004,115000.0,114980.0,0.17696]
[1755872528631,0.43815,115000.0,114980.0,0.17696]
[1755872528926,0.43815,114990.0,114970.0,0.4052245]
[1755872529235,0.004,114990.0,114980.0,0.34026]
[1755872529425,0.004,114990.0,114980.0,0.14128]
[1755872529728,0.004,114990.0,114980.0,0.31824]
[1755872529932,0.004,114990.0,114980.0,0.59133157]
[1755872530127,0.46079,114990.0,114980.0,0.00107157]
[1755872530334,0.3937,114990.0,114980.0,0.00119397]
[1755872530636,0.24686269,115010.0,114980.0,0.41449397]
[1755872530829,0.43415,115000.0,114980.0,0.14247397]
[1755872531026,0.22736,115000.0,114980.0,0.14247397]
[1755872531230,0.20559603,114990.0,114980.0,0.14128]
[1755872531525,0.10716269,115010.0,115000.0,0.17816]
[1755872531724,0.24686269,115010.0,114990.0,0.14128]
[1755872531927,0.47736,115000.0,114980.0,0.14128]
[1755872532122,0.22736,115000.0,114980.0,0.14128]
[1755872532325,0.47736,115000.0,114980.0,0.31944]
[1755872532539,0.22736,114990.0,114960.0,0.34146]
[1755872532737,0.22736,114980.0,114960.0,0.4284527]
[1755872532936,0.08846,114980.0,114960.0,0.1633]
[1755872533236,0.22736,114970.0,114950.0,0.38976629]
[1755872533430,0.22736,114970.0,114950.0,0.21160629]
[1755872533431,0.20679,114960.0,114950.0,0.21160629]
[1755872533636,0.22736,114960.0,114950.0,0.07032629]
[1755872533938,0.3143486,114970.0,114950.0,0.14128]
[1755872534139,0.3143486,114970.0,114930.0,0.15166]
[1755872534140,0.22736,114950.0,114930.0,0.15166]
[1755872534336,0.1397,114950.0,114930.0,0.15166]
[1755872534532,0.47736,114950.0,114930.0,0.15246]
[1755872534735,0.0869828,114980.0,114940.0,0.34146]
[1755872534736,0.22736,114960.0,114940.0,0.34146]
[1755872534936,0.20679,114960.0,114950.0,0.14128]
[1755872535136,0.43415,114960.0,114940.0,0.34146]
[1755872535342,0.43615,114960.0,114940.0,0.34146]
[1755872535529,0.002,114960.0,114950.0,0.31944]
[1755872535731,0.002,114960.0,114950.0,0.6792607]
[1755872535932,0.002,114960.0,114950.0,0.59146]
[1755872536136,0.002,114960.0,114950.0,0.34146]
[1755872536534,0.002,114960.0,114950.0,0.14128]
[1755872536741,0.68615,114960.0,114940.0,0.14128]
[1755872536940,0.51117451,114970.0,114930.0,0.27897716]
[1755872536941,0.43415,114950.0,114930.0,0.27897716]
[1755872537137,0.5142483,114940.0,114930.0,0.01038]
[1755872537343,0.42724,114940.0,114930.0,0.01038]
[1755872537542,0.67724,114940.0,114930.0,0.01038]
[1755872538236,0.7650483,114940.0,114930.0,0.01038]
[1755872538436,0.29044,114920.0,114900.0,0.14289]
[1755872538644,0.29044,114920.0,114890.0,1.70869]
[1755872538645,0.2087,114900.0,114890.0,1.70869]
[1755872538940,0.42724,114900.0,114890.0,0.0689912]
[1755872539144,0.42724,114900.0,114880.0,0.33893721]
[1755872539335,0.42724,114920.0,114890.0,0.14289]
[1755872539533,0.2087,114910.0,114900.0,0.14289]
[1755872539731,0.2087,114900.0,114890.0,0.14289]
[1755872539935,0.2087,114890.0,114880.0,0.16077721]
[1755872540138,0.2087,114890.0,114880.0,0.01788721]
[1755872540139,0.42724,114890.0,114880.0,0.01788721]
[1755872540537,0.67724,114890.0,114880.0,0.01788721]
[1755872540940,0.21854,114910.0,114880.0,0.16077721]
[1755872541142,0.0870163,114930.0,114880.0,0.33893721]
[1755872541332,0.42724,114910.0,114890.0,0.17816]
[1755872541537,0.42724,114910.0,114890.0,0.32105]
[1755872541733,0.21854,114910.0,114890.0,0.24555546]
[1755872541941,0.21854,114910.0,114890.0,0.42371546]
[1755872542147,0.42724,114900.0,114890.0,0.07026546]
[1755872542343,0.2087,114890.0,114870.0,0.32105]
[1755872542640,0.42724,114880.0,114860.0,1.90867974]
[1755872542855,0.42724,114880.0,114860.0,0.32105]
[1755872543040,0.42724,114870.0,114860.0,0.0702072]
[1755872543242,0.42724,114870.0,114850.0,0.32105]
[1755872543842,0.42724,114880.0,114860.0,0.14289]
[1755872544044,0.2087,114870.0,114860.0,0.14289]
[1755872544240,0.2087,114900.0,114870.0,0.17816]
[1755872544546,0.42724,114900.0,114880.0,0.14289]
[1755872544744,0.42744,114900.0,114880.0,0.32125]
[1755872545147,0.0002,114900.0,114890.0,0.17816]
[1755872545340,0.0002,114900.0,114890.0,0.50878905]
[1755872545540,0.0002,114900.0,114890.0,0.75878905]
[1755872545745,0.0002,114900.0,114890.0,0.67174295]
[1755872545944,0.0012,114900.0,114890.0,0.38934295]
[1755872546146,0.67844,114900.0,114890.0,0.0002]
[1755872546544,0.0012,114900.0,114890.0,0.17549]
[1755872546746,0.0012,114900.0,114890.0,0.35365]
[1755872547149,0.0062,114900.0,114890.0,0.60365]
[1755872547348,0.4649,114900.0,114890.0,0.0002]
[1755872547652,0.68344,114900.0,114890.0,0.0002]
[1755872547854,0.0062,114900.0,114890.0,0.60365]
[1755872548248,0.0062,114900.0,114890.0,0.76054301]
[1755872548449,0.0062,114900.0,114890.0,0.75974301]
[1755872548653,0.0062,114900.0,114890.0,0.67269691]
[1755872548845,0.006,114900.0,114890.0,0.76054301]
[1755872549045,4e-05,114910.0,114900.0,0.34725]
[1755872549342,4e-05,114910.0,114900.0,0.4342885]
[1755872549547,4e-05,114910.0,114900.0,0.34725]
[1755872549747,0.20874,114910.0,114890.0,0.06904691]
[1755872550051,0.42728,114910.0,114890.0,0.31485]
[1755872550554,0.21854,114900.0,114880.0,0.0324]
[1755872550752,4e-05,114910.0,114870.0,1.88153]
[1755872550753,0.42724,114890.0,114870.0,1.88153]
[1755872551055,0.42724,114890.0,114870.0,1.9514734]
[1755872551256,0.42728,114910.0,114890.0,0.31485]
[1755872551752,0.2087,114890.0,114880.0,0.14289]
[1755872552346,0.2087,114890.0,114880.0,0.31485]
[1755872552656,0.2087,114880.0,114870.0,1.7795134]
[1755872552843,0.42744,114880.0,114860.0,0.01795563]
[1755872553051,0.42724,114860.0,114840.0,0.16513845]
[1755872553243,0.2087,114850.0,114840.0,0.0002]
[1755872553450,0.42744,114850.0,114840.0,0.0002]
[1755872553649,0.21874,114850.0,114840.0,0.0002]
[1755872553851,0.2087,114810.0,114800.0,0.03941439]
[1755872554058,0.41874676,114810.0,114800.0,0.01764369]
[1755872554249,0.41874676,114810.0,114800.0,0.08615239]
[1755872554453,0.21854,114840.0,114820.0,0.14289]
[1755872554651,0.53170334,114870.0,114830.0,0.32334]
[1755872554956,0.21854,114840.0,114830.0,0.01764369]
[1755872555456,0.246,114840.0,114830.0,0.16453369]
[1755872555762,0.246,114840.0,114810.0,0.35574]
[1755872555763,0.21854,114830.0,114810.0,0.35574]
[1755872556062,0.2468,114840.0,114810.0,0.32334]
[1755872556063,0.42724,114840.0,114810.0,0.32334]
[1755872556360,0.21654,114830.0,114810.0,0.14289]
[1755872556555,0.3455,114820.0,114810.0,0.02164369]
[1755872556758,0.3455,114810.0,114790.0,0.18158639]
[1755872556956,0.3463,114810.0,114780.0,6.318e-05]
[1755872557156,0.3463,114810.0,114790.0,0.02164369]
[1755872557157,0.3455,114800.0,114790.0,0.02164369]
[1755872557358,0.3455,114790.0,114780.0,0.02164369]
[1755872557551,0.5955,114790.0,114780.0,0.02164369]
[1755872557755,0.3455,114810.0,114780.0,0.59518369]
[1755872557953,0.3455,114810.0,114790.0,0.16453369]
[1755872558151,0.3455,114810.0,114790.0,0.34518369]
[1755872558357,0.21854,114810.0,114800.0,0.02164369]
[1755872558555,0.08174,114820.0,114800.0,0.02164369]
[1755872558760,0.51117451,114850.0,114810.0,0.02164369]
[1755872558962,0.42724,114840.0,114820.0,0.32354]
[1755872559159,0.001,114830.0,114820.0,0.32354]
[1755872559660,0.01972883,114870.0,114840.0,0.37135]
[1755872559661,0.21854,114860.0,114840.0,0.37135]
[1755872559960,0.23826883,114870.0,114850.0,0.33615]
[1755872560150,0.0002,114860.0,114850.0,0.37055]
[1755872560354,0.0002,114860.0,114850.0,0.14309]
[1755872560561,0.0002,114860.0,114850.0,0.19346]
[1755872560860,0.0002,114860.0,114850.0,0.62155]
[1755872561160,0.0002,114860.0,114850.0,0.62075]
[1755872561462,0.0002,114860.0,114850.0,0.14309]
[1755872561765,0.0002,114860.0,114850.0,0.0002]
[1755872561766,0.67744,114860.0,114850.0,0.0002]
[1755872562060,0.0002,114860.0,114850.0,0.62155]
[1755872562256,0.01972883,114870.0,114850.0,0.7086264]
[1755872562563,0.42724,114920.0,114890.0,0.0344]
[1755872562751,0.42724,114920.0,114900.0,0.33615]
[1755872562956,0.23788511,114910.0,114900.0,0.19326]
[1755872563257,0.23788511,114910.0,114850.0,0.67729]
[1755872563258,0.2087,114870.0,114850.0,0.67729]
[1755872563558,0.21854,114870.0,114850.0,0.67729]
[1755872563765,0.003,114870.0,114860.0,0.14289]
[1755872564164,0.2117,114870.0,114860.0,0.14289]
[1755872564763,0.42724,114860.0,114830.0,0.17729]
[1755872564955,0.21854,114860.0,114840.0,0.14289]
[1755872565155,0.2087,114850.0,114840.0,0.14289]
[1755872565355,0.21854,114840.0,114820.0,0.01781562]
[1755872565557,0.21854,114830.0,114820.0,0.19326]
[1755872565858,0.0002,114840.0,114830.0,0.37075]
[1755872566061,0.2087,114840.0,114830.0,0.14289]
[1755872566260,0.25,114840.0,114810.0,1.63584142]
[1755872566460,0.1368,114860.0,114840.0,0.14289]
[1755872566761,0.2087,114860.0,114850.0,0.14289]
[1755872566956,0.3455,114860.0,114840.0,0.0344]
[1755872567157,0.2266,114860.0,114840.0,0.14289]
[1755872567357,0.20651,114840.0,114830.0,0.14034]
[1755872567558,0.20651,114840.0,114820.0,0.0344]
[1755872567559,0.20651,114830.0,114820.0,0.14034]
[1755872567864,0.20651,114820.0,114810.0,0.14034]
[1755872568859,0.23458,114830.0,114810.0,0.33368]
[1755872569066,0.44109,114830.0,114810.0,0.33368]
[1755872569367,0.44129,114830.0,114810.0,0.33368]
[1755872569568,0.20651,114820.0,114810.0,0.14034]
[1755872569760,0.0002,114820.0,114810.0,0.33368]
[1755872570068,0.20651,114810.0,114790.0,0.43699192]
[1755872570265,0.0002,114810.0,114800.0,0.36808]
[1755872570561,0.0002,114810.0,114800.0,0.61808]
[1755872570775,0.0002,114810.0,114800.0,0.61888]
[1755872571067,0.0002,114810.0,114800.0,0.61808]
[1755872571263,0.0002,114810.0,114790.0,0.06891192]
[1755872571264,0.20671,114810.0,114790.0,0.06891192]
[1755872571560,0.0002,114810.0,114800.0,0.36808]
[1755872571962,0.0002,114810.0,114800.0,0.61888]
[1755872572164,0.0002,114810.0,114800.0,0.61808]
[1755872572461,0.01961484,114850.0,114840.0,0.36808]
[1755872573058,0.01961484,114850.0,114840.0,0.17474]
[1755872573256,0.01961484,114850.0,114830.0,1.70814]
[1755872573257,0.71070484,114850.0,114830.0,1.70814]
[1755872573469,0.20651,114840.0,114830.0,1.70814]
[1755872573868,0.25419484,114850.0,114830.0,0.33368]
[1755872574069,0.46070484,114850.0,114830.0,0.36808]
[1755872574271,0.45570484,114850.0,114830.0,0.36808]
[1755872574566,0.45570484,114850.0,114830.0,0.17474]
[1755872574768,0.45670484,114850.0,114830.0,0.36808]
[1755872574963,0.25019484,114850.0,114830.0,0.14034]
[1755872575264,0.20651,114820.0,114800.0,1.90164]
[1755872575470,0.23458,114830.0,114810.0,0.33368]
[1755872575665,0.20651,114820.0,114810.0,0.14034]
[1755872575870,0.20651,114810.0,114790.0,2.005594]
[1755872576166,0.44129,114810.0,114790.0,0.437634]
[1755872576472,0.20651,114800.0,114790.0,0.209894]
[1755872576767,0.20671,114800.0,114790.0,0.209894]
[1755872577070,0.0002,114800.0,114790.0,0.403234]
[1755872577270,0.44129,114800.0,114790.0,0.069554]
[1755872577470,0.20651,114780.0,114770.0,1.7478291]
[1755872577771,0.43929,114790.0,114770.0,1.9411691]
[1755872578866,0.23078,114790.0,114770.0,0.3731691]
[1755872579067,0.20651,114780.0,114770.0,0.1798291]
[1755872579370,0.35129,114770.0,114760.0,1.65528]
[1755872579668,0.35129,114770.0,114760.0,1.72536016]
[1755872579972,0.35129,114770.0,114760.0,2.05904016]
[1755872579973,0.14478,114770.0,114760.0,2.05904016]
[1755872580174,0.35129,114780.0,114760.0,0.21042016]
[1755872580379,0.4384271,114770.0,114760.0,0.07008016]
[1755872580569,0.35129,114770.0,114740.0,0.14034]
[1755872580764,0.35129,114770.0,114750.0,0.33368]
[1755872580765,0.23458,114770.0,114750.0,0.33368]
[1755872581074,0.20651,114780.0,114760.0,0.14034]
[1755872581075,0.23538,114780.0,114760.0,0.14034]
[1755872581374,0.44109,114750.0,114740.0,0.19354]
[1755872581577,0.44129,114750.0,114740.0,0.0002]
[1755872581764,0.69129,114750.0,114740.0,0.0002]
[1755872582464,0.7784422,114750.0,114740.0,0.0002]
[1755872582666,0.7784422,114750.0,114710.0,3.59608]
[1755872582861,0.23458,114740.0,114710.0,2.02788]
[1755872583066,0.23458,114740.0,114720.0,0.33368]
[1755872583267,0.44109,114740.0,114730.0,0.14034]
[1755872583470,0.20651,114730.0,114720.0,0.14034]
[1755872583674,0.35129,114730.0,114720.0,0.14034]
[1755872583972,0.14478,114730.0,114720.0,0.58368]
[1755872584174,0.44109,114740.0,114720.0,0.44029688]
[1755872584373,0.44109,114730.0,114720.0,0.06841688]
[1755872584576,0.44109,114730.0,114700.0,0.41067998]
[1755872584577,0.20651,114720.0,114700.0,0.41067998]
[1755872584772,0.23458,114730.0,114710.0,0.33448]
[1755872584973,0.10986298,114750.0,114730.0,0.14034]
[1755872584974,0.25728798,114750.0,114730.0,0.14034]
[1755872585168,0.25728798,114750.0,114700.0,0.6485586]
[1755872585169,0.23458,114730.0,114700.0,0.19281015]
[1755872585374,0.23458,114730.0,114680.0,0.37194334]
[1755872585375,0.5282726,114710.0,114680.0,0.37194334]
[1755872585680,0.44109,114690.0,114680.0,6.334e-05]
[1755872585869,0.0898,114680.0,114660.0,0.37188]
[1755872586071,0.44129,114680.0,114670.0,0.0002]
[1755872586274,0.0002,114680.0,114670.0,0.6434995]
[1755872586475,0.44109,114720.0,114670.0,0.62288]
[1755872586772,0.44109,114710.0,114690.0,0.33368]
[1755872586976,0.20651,114700.0,114690.0,0.14034]
[1755872587183,0.44109,114700.0,114680.0,0.23278034]
[1755872587367,0.23458,114700.0,114680.0,0.07764034]
[1755872587574,0.23458,114700.0,114680.0,0.14034]
[1755872587768,0.23458,114720.0,114690.0,0.33368]
[1755872587975,0.35129,114720.0,114700.0,0.14034]
[1755872588276,0.5282726,114710.0,114700.0,0.07102366]
[1755872588476,0.23458,114700.0,114680.0,0.14034]
[1755872588672,0.087213,114670.0,114660.0,0.14034]
[1755872588975,0.23458,114660.0,114650.0,4e-05]
[1755872589275,0.00648258,114660.0,114650.0,0.33372]
[1755872589480,0.00648258,114660.0,114650.0,0.44277226]
[1755872589677,0.24102764,114660.0,114650.0,0.07089226]
[1755872589882,0.00664764,114660.0,114650.0,0.80888964]
[1755872590178,0.00664764,114660.0,114650.0,0.17878]
[1755872590479,0.24122764,114660.0,114650.0,0.00024]
[1755872590675,0.00664764,114660.0,114650.0,0.62212]
[1755872590880,0.00664764,114660.0,114650.0,0.69168124]
[1755872591270,0.14478,114690.0,114670.0,0.0382]
[1755872591475,0.01929345,114720.0,114690.0,0.19334]
[1755872591679,0.0898,114700.0,114680.0,0.14034]
[1755872591880,0.14478,114690.0,114680.0,0.14034]
[1755872592174,0.0898,114700.0,114680.0,0.14034]
[1755872592381,0.23458,114690.0,114660.0,0.17854]
[1755872592584,0.23458,114690.0,114660.0,0.37188]
[1755872592785,0.23458,114690.0,114670.0,0.33368]
[1755872593078,0.23458,114700.0,114680.0,0.14034]
[1755872593280,0.14478,114690.0,114680.0,0.12034]
[1755872593479,0.14478,114690.0,114660.0,0.23154]
[1755872593678,0.44109,114690.0,114670.0,0.19334]
[1755872593884,0.29631,114710.0,114680.0,0.0382]
[1755872594182,0.44109,114710.0,114690.0,0.23154]
[1755872594584,0.16407345,114720.0,114710.0,0.19334]
[1755872594782,0.25387345,114720.0,114680.0,0.0382]
[1755872594983,0.46038345,114720.0,114700.0,0.23154]
[1755872595186,0.01929345,114720.0,114710.0,0.14034]
[1755872595391,0.01929345,114720.0,114710.0,0.37188]
[1755872595680,0.01929345,114720.0,114710.0,0.62268]
[1755872595879,0.01970798,114750.0,114740.0,0.37188]
[1755872596081,0.01970798,114750.0,114740.0,0.62188]
[1755872596683,0.01890798,114750.0,114740.0,0.69315766]
[1755872597187,0.22675,114780.0,114760.0,0.17418]
[1755872597484,0.42114,114800.0,114780.0,0.20945]
[1755872597688,0.42114,114800.0,114780.0,0.13598]
[1755872597990,0.20074,114790.0,114780.0,0.13598]
[1755872598278,0.20074,114790.0,114780.0,0.13717594]
[1755872598481,0.01930444,114820.0,114780.0,1.85879594]
[1755872598780,0.20074,114850.0,114830.0,0.34543]
[1755872598985,0.08197,114860.0,114840.0,0.13598]
[1755872599277,0.42114,114860.0,114850.0,0.00119594]
[1755872599879,0.67114,114860.0,114850.0,0.00119594]
[1755872600072,0.25,114860.0,114820.0,1.58098]
[1755872600278,0.20074,114850.0,114820.0,1.58098]
[1755872600475,0.20574,114860.0,114820.0,1.82982]
[1755872600674,0.20074,114850.0,114840.0,0.13598]
[1755872600880,0.005,114860.0,114830.0,0.03939]
[1755872601075,0.42614,114860.0,114840.0,0.34543]
[1755872601283,0.20074,114840.0,114830.0,0.13598]
[1755872601477,0.0008,114850.0,114810.0,0.17592436]
[1755872601679,0.08197,114830.0,114810.0,0.2787122]
[1755872601874,0.08197,114830.0,114810.0,0.34543]
[1755872601875,0.42114,114830.0,114810.0,0.34543]
[1755872602088,0.20074,114820.0,114810.0,0.13598]
[1755872602276,0.42114,114810.0,114800.0,0.2]
[1755872602482,0.93581347,114810.0,114800.0,0.2]
[1755872602678,1.18581347,114810.0,114800.0,0.2]
[1755872602988,0.67114,114810.0,114800.0,0.2]
[1755872603384,0.67114,114810.0,114800.0,0.27079442]
[1755872603588,0.42114,114810.0,114800.0,0.27079442]
[1755872603890,0.20474,114830.0,114800.0,0.48024442]
[1755872604085,0.20474,114830.0,114810.0,0.34543]
[1755872604086,0.42514,114830.0,114810.0,0.34543]
[1755872604291,0.42314,114850.0,114820.0,0.38562]
[1755872604487,0.002,114850.0,114840.0,0.38562]
[1755872604694,0.51467347,114890.0,114870.0,0.34543]
[1755872604695,0.42114,114890.0,114870.0,0.34543]
[1755872604898,0.33917,114890.0,114870.0,0.38482]
[1755872605190,0.33917,114890.0,114880.0,0.00119532]
[1755872605394,0.42114,114890.0,114880.0,0.00119532]
[1755872605685,0.42114,114870.0,114850.0,0.34543]
[1755872605886,0.20074,114890.0,114860.0,0.38482]
[1755872606082,0.42114,114890.0,114870.0,0.34543]
[1755872606281,4e-05,114910.0,114890.0,0.34543]
[1755872606487,0.20078,114910.0,114890.0,0.34543]
[1755872606685,0.20074,114900.0,114880.0,1.60871]
[1755872606884,0.08197,114900.0,114880.0,0.21045]
[1755872607080,0.42114,114890.0,114880.0,0.001]
[1755872607489,0.5081861,114890.0,114880.0,0.001]
[1755872607687,0.28271,114870.0,114860.0,0.06971964]
[1755872607889,4e-05,114910.0,114850.0,0.0008]
[1755872607890,0.0870727,114910.0,114850.0,0.0008]
[1755872608084,0.28271,114900.0,114870.0,0.24884]
[1755872608394,0.20074,114870.0,114860.0,0.20657118]
[1755872608590,0.08197,114890.0,114860.0,0.20657118]
[1755872608786,0.08197,114890.0,114870.0,0.13598]
[1755872608986,0.28471,114890.0,114870.0,0.13598]
[1755872609290,0.20074,114870.0,114860.0,0.13598]
[1755872609490,0.08197,114870.0,114850.0,0.13598]
[1755872609689,0.28471,114890.0,114870.0,0.34543]
[1755872609891,0.28871,114890.0,114870.0,0.34543]
[1755872610189,0.08797,114890.0,114880.0,0.13598]
[1755872610400,0.5437861,114890.0,114860.0,0.06968572]
[1755872610588,0.20074,114880.0,114860.0,0.34543]
[1755872610783,0.28271,114870.0,114860.0,0.13598]
[1755872610988,0.20074,114870.0,114840.0,1.5688]
[1755872611195,0.08197,114890.0,114870.0,0.34543]
[1755872611388,0.3074463,114890.0,114860.0,0.38482]
[1755872611690,0.3074463,114890.0,114840.0,1.568]
[1755872611691,0.2204,114860.0,114840.0,0.13598]
[1755872611894,0.2204,114860.0,114840.0,0.34543]
[1755872612094,0.2204,114880.0,114850.0,0.20945]
[1755872612394,0.2204,114870.0,114860.0,0.001]
[1755872612591,0.33197,114870.0,114860.0,0.001]
[1755872612788,0.08197,114890.0,114860.0,1.07133604]
[1755872612992,0.08197,114890.0,114850.0,0.0008]
[1755872612993,0.001,114900.0,114880.0,0.34543]
[1755872613303,0.28271,114890.0,114880.0,0.13598]
[1755872613600,0.20074,114870.0,114860.0,0.13598]
[1755872613892,0.28271,114870.0,114860.0,0.20601311]
[1755872614096,0.67114,114870.0,114860.0,0.07003311]
[1755872614394,0.20074,114850.0,114840.0,0.25469428]
[1755872614590,0.5082165,114850.0,114840.0,0.11871428]
[1755872614790,0.7582165,114850.0,114840.0,0.003]
[1755872615192,0.0870718,114860.0,114840.0,0.34843]
[1755872615392,0.5082084,114870.0,114830.0,0.38482]
[1755872615595,0.5082084,114870.0,114820.0,1.65656]
[1755872615596,0.2878164,114850.0,114840.0,0.13598]
[1755872615792,0.28271,114840.0,114820.0,2.00199]
[1755872615993,0.20074,114830.0,114820.0,0.13598]
[1755872616197,0.2878311,114840.0,114820.0,0.13598]
[1755872616496,0.08097,114830.0,114820.0,0.34543]
[1755872616693,0.13843,114850.0,114800.0,1.83939442]
[1755872616894,0.087084,114840.0,114810.0,0.20945]
[1755872617094,0.087084,114840.0,114800.0,0.27079442]
[1755872617095,0.2255292,114820.0,114800.0,0.27079442]
[1755872617301,0.13843,114820.0,114800.0,0.61622442]
[1755872617602,0.13843,114820.0,114800.0,0.2]
[1755872617603,0.4262768,114810.0,114800.0,0.2]
[1755872617801,0.33917,114810.0,114800.0,0.2]
[1755872618001,0.33817,114810.0,114800.0,0.2]
[1755872618196,0.13843,114830.0,114800.0,0.54543]
[1755872618396,0.13843,114830.0,114810.0,0.13598]
[1755872618397,0.2204,114830.0,114810.0,0.13598]
[1755872618597,0.2204,114830.0,114820.0,0.003]
[1755872618797,4e-05,114840.0,114820.0,0.34843]
[1755872618996,0.3074916,114830.0,114820.0,0.003]
[1755872619195,0.3074916,114830.0,114800.0,0.33598]
[1755872619196,1.07216507,114830.0,114800.0,0.33598]
[1755872619502,0.08197,114810.0,114800.0,0.33698]
[1755872619702,0.2204,114820.0,114800.0,0.54643]
[1755872619901,0.13847,114840.0,114800.0,0.5389136]
[1755872620103,0.42118,114840.0,114820.0,0.13598]
[1755872620297,4e-05,114840.0,114830.0,0.34543]
[1755872620601,0.20078,114840.0,114830.0,0.13598]
[1755872620797,4e-05,114840.0,114830.0,0.59543]
[1755872621196,4e-05,114840.0,114830.0,0.38598]
[1755872621501,0.00104,114840.0,114830.0,0.59543]
[1755872621699,0.00016001,114840.0,114830.0,0.7269116]
[1755872621896,0.20074,114860.0,114840.0,0.38882]
[1755872622304,0.2204,114870.0,114850.0,0.34543]
[1755872622601,0.33917,114890.0,114860.0,0.20945]
[1755872622906,0.28271,114880.0,114870.0,0.13598]
[1755872623199,0.20074,114900.0,114870.0,0.34543]
[1755872623391,0.20074,114890.0,114870.0,0.20945]
[1755872623600,0.08197,114900.0,114890.0,0.34543]
[1755872623897,0.20078,114910.0,114890.0,0.20945]
[1755872624203,4e-05,114910.0,114900.0,0.4766586]